Cogmind - Beta 16 @@@ ROGUE MODE // 2025.11.02 @ 13:00:31 Player: delto Result: Destroyed by G-34 Mercenary with Small Laser Performance ------------- Evolutions (0) 0 Regions Visited (1) 200 Robots Destroyed (10) 50 Value Destroyed (186) 186 Prototype IDs (0) 0 Alien Tech Used (0) 0 Bonus (0) 0 TOTAL SCORE: 436 Bonus ------- None Cogmind --------- Core Integrity 0/250 Matter 262/300 Energy 250/250 System Corruption 0% Temperature Cool (6) Movement Treading (160) Location -10/Materials Parts ------- > --- POWER (1) -------- Ion Engine > --- PROPULSION (2) --- Improved Treads Improved Treads > --- UTILITY (2) ------ Heat Sink Hacking Suite > --- WEAPON (2) ------- Maul Maul > --- INVENTORY (5) ---- Light Ion Engine Maul Maul Peak State ------------ > --- POWER ------------ Ion Engine > --- PROPULSION ------- Improved Treads Improved Treads > --- UTILITY ---------- Improved Terrain Scanner Hacking Suite > --- WEAPON ----------- Maul Maul > --- INVENTORY -------- Light Ion Engine Improved Treads Improved Treads Maul Maul [Rating: 15] Favorites ----------- Power Light Ion Engine Engine Light Ion Engine Propulsion Light Treads Treads Light Treads Hover Unit Hover Unit Utility Improved Terrain Scanner Device Improved Terrain Scanner Storage Small Storage Unit Hackware Hacking Suite Weapon Assault Rifle Energy Gun EM Pulse Gun Ballistic Gun Assault Rifle Launcher Grenade Launcher Special Weapon Mining Laser Impact Weapon Maul Build | -11 -10 ------- Run | Yrd Mat Slots Evolved . | . . Power . | . . Propulsion . | . . Utility . | . . Weapon . | . . Parts Attached 23 | 8 15 Power 2 | 1 1 Engine 2 | 1 1 Core . | . . Reactor . | . . Propulsion 9 | 2 7 Treads 6 | 2 4 Leg . | . . Wheel . | . . Hover 3 | . 3 Flight . | . . Utility 5 | 3 2 Device 3 | 2 1 Storage 1 | 1 . Processor . | . . Hackware 1 | . 1 Protection . | . . Artifact . | . . Weapon 7 | 2 5 Energy Gun 2 | 1 1 Energy Cannon . | . . Ballistic Gun 1 | 1 . Ballistic Cannon . | . . Launcher 1 | . 1 Special Weapon 1 | . 1 Impact Weapon 2 | . 2 Slashing Weapon . | . . Piercing Weapon . | . . Special Melee Weapon . | . . Unidentified Prototypes . | . . Parts Lost 3 | . 3 Power . | . . Propulsion 2 | . 2 Utility 1 | . 1 Weapon . | . . Highest Loss Streak 2 | . 2 To Critical Strikes . | . . Average Backups 3 | 1 4 Power 1 | . 1 Propulsion . | . 1 Utility . | . . Weapon 1 | . 1 Tool/Special . | . . Unused Backups 7 | . 7 Power 2 | . 2 Propulsion 3 | . 3 Utility . | . . Weapon 2 | . 2 Tool/Special . | . . Average Slot Usage (%) 95 | . 95 Engine 14 | . 14 Treads 23 | . 23 Hover 3 | . 3 Device 18 | . 18 Hackware 7 | . 7 Energy Gun 7 | . 7 Ballistic Gun 9 | . 9 Launcher 1 | . 1 Impact Weapon 9 | . 9 Peak Build Rating 15 | 9 15 Average Rating 8 | 5 10 On Entrance 4 | . 9 Avg Prop Armor Cover (%) . | . . Naked Turns . | . . Heaviest Build 15 | 12 15 Greatest Support 46 | 40 46 Greatest Overweight (x) 1 | . 1 Average Overweight (x) . | . . Largest Inventory Capacity 8 | 8 8 Average Capacity 5 | 7 5 Most Carried 8 | 4 8 Average Carried 3 | 1 4 Final Capacity 5 | 5 5 Final Carried 4 | 4 3 Class Distribution -------------------- 100% | Mutant Dominant Class ---------------- Mutant | -10/Materials Resources | -11 -10 ----------- Run | Yrd Mat Matter Collected 444 | 287 157 Remotely . | . . Salvage Created 276 | 26 250 Parts 22 | 4 18 Haulers Intercepted . | . . Recyclers Shooed 1 | 1 . Parts Field Recycled . | . . Retrieved Matter . | . . Parts Self-Destructed . | . . Prevented . | . . Parts Restored . | . . Kills | -11 -10 ------- Run | Yrd Mat Combat Hostiles Destroyed 3 | . 3 Melee 1 | . 1 Guns 1 | . 1 Classes Destroyed 6 | 1 5 Builder 2 | . 2 Tunneler 1 | 1 . Recycler 1 | . 1 Operator 1 | . 1 Watcher 2 | . 2 Grunt 3 | . 3 Best Kill Streak 6 | 1 6 Combat Bots Only 2 | . 2 Max Kills in Single Turn 1 | 1 1 Gunslinging . | . . Exploded . | . . Melee 1 | . 1 Uniques/NPCs Destroyed . | . . Combat | -11 -10 -------- Run | Yrd Mat Hostile Shots Fired 96 | . 96 Missed 26 | . 26 Hits 70 | . 70 Projectile 70 | . 70 Critical Strikes 3 | . 3 Damage Taken 873 | . 873 Core 256 | . 256 Absorbed by Shields . | . . Core Remaining (%) 100 | 100 . Volleys Fired 9 | 5 4 Largest 2 | 2 2 Hottest 60 | 60 60 Shots Fired 18 | 10 8 Gun 17 | 10 7 Cannon . | . . Launcher 1 | . 1 Special . | . . Kinetic 9 | 5 4 Thermal 5 | 5 . Explosive 1 | . 1 Electromagnetic 3 | . 3 Robot Hit Streak 13 | 8 13 Robot Miss Streak 2 | 2 1 Penetration Max . | . . Secondary Targets . | . . Shots Hit Robots 22 | 8 14 Core Hits 9 | 2 7 Critical Kills 1 | . 1 Critical Parts Destroyed 2 | . 2 Critical Strikes 3 | . 3 Smash 3 | . 3 Melee Attacks 13 | . 13 Impact 13 | . 13 Slashing . | . . Piercing . | . . Sneak Attacks 2 | . 2 Combat Hostiles . | . . Follow-up Attacks 3 | . 3 Damage Inflicted 656 | 99 557 Guns 169 | 99 70 Cannons . | . . Explosions 69 | . 69 Melee 418 | . 418 Ramming . | . . Kinetic 78 | 56 22 Thermal 43 | 43 . Explosive 69 | . 69 Electromagnetic 48 | . 48 Impact 418 | . 418 Slashing . | . . Piercing . | . . Highest Corruption . | . . Average Corruption . | . . Corruption Purged . | . . Corruption Blocked . | . . Overload Shots . | . . Overflow Damage 210 | . 210 Projectiles . | . . Explosions 1 | . 1 Melee 209 | . 209 Knockbacks 3 | . 3 Impact 2 | . 2 Kinetic . | . . Secondary 1 | . 1 Self-Inflicted Damage . | . . Shots . | . . Rammed . | . . Targets Rammed . | . . Kicked . | . . Crushed . | . . Highest Temperature 9 | . 9 Average Temperature 5 | . 5 Received Heat Transfer 543 | . 543 Siege Activations . | . . Martial Activations . | . . Shielding Activations . | . . Robots Disrupted . | . . Combat Hostiles . | . . Robots Corrupted 3 | . 3 Combat Hostiles 1 | . 1 Parts Fried 5 | . 5 Impact Corruptions 8 | . 8 Robots Melted . | . . Combat Hostiles . | . . Parts Melted . | . . Heat Transferred 100 | 100 . Parts Sabotaged . | . . Parts Stolen . | . . Parts Stripped . | . . Power Chain Reactions . | . . Alert | -11 -10 ------- Run | Yrd Mat Maximum Alert Level . | . . Low Security (%) 100 | 100 100 Level 1 . | . . Level 2 . | . . Level 3 . | . . Level 4 . | . . Level 5 . | . . High Security . | . . Max Security . | . . Peak Influence 30 | 5 30 Initial . | . . Average 4 | . 6 Influence Increases 129 | 5 124 Destroy 0b10 Robot/C 60 | . 60 Destroy 0b10 Robot/NC 35 | 5 30 Destroy Leader 24 | . 24 Destroy Structure 10 | . 10 Influence Decreases 107 | 5 102 Time Decay 87 | 5 82 Lost Part 10 | . 10 Lost Ally 10 | . 10 Squads Dispatched 1 | . 1 Investigation . | . . Extermination . | . . Reinforcement 1 | . 1 Assault . | . . Garrison . | . . Intercept . | . . Searches Triggered . | . . Construction Impeded . | . . Haulers Reinforced . | . . Active Scanning Responses . | . . Cargo Convoy Interrupts . | . . Stealth | -11 -10 --------- Run | Yrd Mat Distress Signals 2 | . 2 Communications Jammed . | . . Distress Signals . | . . Times Spotted 12 | . 12 Peak Tracking Total 7 | . 7 Tactical Retreats . | . . Traps | -11 -10 ------- Run | Yrd Mat Traps Triggered . | . . Indirectly . | . . Trap Hack Attempts . | . . Triggered . | . . Disarmed . | . . Reprogrammed . | . . Reused . | . . Traps Extracted . | . . Installed . | . . Triggered . | . . Machines | -11 -10 ---------- Run | Yrd Mat Machines Disabled . | . . Max in Single Turn . | . . Machines Repaired . | . . Machines Dismantled . | . . Machines Sabotaged . | . . Overloaded Fab Kills . | . . Hacking | -11 -10 --------- Run | Yrd Mat Machines Accessed 2 | . 2 Terminals 2 | . 2 Fabricators . | . . Repair Stations . | . . Recycling Units . | . . Scanalyzers . | . . Garrison Access . | . . Total Hacks 4 | . 4 Successful 2 | . 2 Failed 2 | . 2 Catastrophic . | . . Database Lockouts . | . . Manual 4 | . 4 Terminals 4 | . 4 Fabricators . | . . Repair Stations . | . . Recycling Units . | . . Scanalyzers . | . . Garrison Access . | . . Terminal Hacks . | . . Fabricator Hacks . | . . Repair Station Hacks . | . . Recycling Unit Hacks . | . . Scanalyzer . | . . Garrison Access Hacks . | . . Unauthorized Hacks 2 | . 2 Terminals 2 | . 2 Assimilate 1 | . 1 Botnet 1 | . 1 Fabricators . | . . Repair Stations . | . . Recycling Units . | . . Scanalyzers . | . . Garrison Access . | . . Data Cores Recovered . | . . Used . | . . Hacking Detections 2 | . 2 Full Trace Events . | . . Feedback Events . | . . Feedback Blocked . | . . Robot Schematics Acquired . | . . Robots Built . | . . Authchips . | . . Time . | . . Total Robot Build Rating . | . . Part Schematics Acquired . | . . Parts Built . | . . Authchips . | . . Time . | . . Total Part Build Rating . | . . Part Studies Acquired . | . . Parts Repaired . | . . Time . | . . Parts Recycled . | . . Recycled Matter . | . . Retrieved Matter . | . . Retrieved Components . | . . Parts Scanalyzed . | . . Part Schematics Acquired . | . . Parts Damaged . | . . Bothacking | -11 -10 ------------ Run | Yrd Mat Used RIF Installer . | . . Robots Hacked . | . . Non-combat . | . . Combat . | . . Robot Hacks Applied . | . . Relay Couplers Released . | . . Fabnet Peak Effective % . | . . Robots Rewired . | . . Allies Hacked . | . . Hacks Repelled . | . . Allies | -11 -10 -------- Run | Yrd Mat Total Allies 1 | . 1 Largest Group 1 | . 1 Highest-Rated Group 10 | . 10 Highest-Rated Ally 10 | . 10 Total Orders . | . . Ally Attacks . | . . Total Damage . | . . Kills . | . . Allies Corrupted . | . . Allies Melted . | . . Intel | -11 -10 ------- Run | Yrd Mat Active Infowar (turns) 256 | 31 225 Terrain 245 | 20 225 Seismic 169 | 31 138 Robot Analysis Total . | . . Derelict Logs Recovered . | . . Drone Launches . | . . Drone Recoveries . | . . Exploration | -11 -10 ------------- Run | Yrd Mat Turns Passed 453 | 150 303 Spaces Moved 230 | 77 153 Core 2 | 2 . Treads 188 | 75 113 Legs . | . . Wheels . | . . Hover 40 | . 40 Flight . | . . Fastest Speed 50 | 50 56 Average Speed 142 | 157 134 Slowest Speed 160 | 160 160 Overloaded Moves . | . . Propulsion Burnouts . | . . Robots Hopped . | . . Potential Cave-ins . | . . Cave-ins Triggered . | . . Exploration Rate (%) 21 | 7 35 Regions Visited 1 Branch Regions . Pre-discovered Areas . | . . Known Exits Taken . | . . Unknown Exits Taken 1 | 1 . Scrap Searched . | . . Spaces Dug . | . . Terrain Destroyed 8 | . 8 Melee . | . . Projectile . | . . AOE 8 | . 8 Terrain Rammed . | . . Walls Destroyed . | . . Machines Disabled . | . . Actions | -11 -10 --------- Run | Yrd Mat Total 319 | 93 226 Wait 9 | . 9 Move 229 | 76 153 Hop . | . . Pick Up 13 | 3 10 Fast Attach 18 | 8 10 Attach 3 | . 3 Detach 5 | 1 4 Swap 5 | . 5 Drop 18 | . 18 Fire 9 | 5 4 Melee 10 | . 10 Ram . | . . Kick . | . . Crush . | . . Escape Stasis . | . . Rewire . | . . Trap . | . . Miscellaneous . | . . Route ------- -11/Scrapyard -10/Materials History --------- Turn | Location | Event 9 | -11/Scrapyard | Discovered new exit (range 16) 151 | -11/Scrapyard | Entered Materials 378 | -10/Materials | Build established: Mutant 408 | -10/Materials | Core integrity fell below 50% 446 | -10/Materials | Core integrity fell below 20% 454 | -10/Materials | Destroyed by G-34 Mercenary with Small Laser Last Messages --------------- 00443_ U-05 Engineer system terminally corrupted. 00443_ Lgt. Ion Engine fried. 00443_ Structural Scanner fried. 00445_ U-05 Engineer completes Hadron Collector. 00447_ Destroyed Hover Unit. 00447_ W-16 Scout system corrupted by crushing effect. 00447_ Maul follow-up attack on W-16 Scout. 00447_ Lgt. Ion Engine fried. 00447_ W-16 Scout destroyed. 00450_ Acquired 23 matter. 00452_ Acquired 10 matter. 00453_ Sneak attack on R-06 Scavenger. 00453_ Destroyed Com. Wheel. 00453_ Destroyed Lgt. Ion Engine. 00453_ R-06 Scavenger system corrupted by crushing effect. 00453_ R-06 Scavenger knocked back. 00453_ U-05 Engineer destroyed. 00454_ R-06 Scavenger system terminally corrupted. 00454_ Tractor Beam fried. 00454_ Com. Wheel fried. Map ----- +----------------------------------------------------+ | ?????????????????????????????????????????????????? | | ?????????????????????????????????????????????????? | | ?????????????????????????????????????????????????? | | ?????????????????????????????????????????????????? | | ?????????????????????????????????????????????????? | | ?????????????????????????????????????????????????? | | ?????????????????????????????????????????????????? | | ?????????????????????????????????????????????????? | | ?????????????????????????????????????????????????? | | ?????????????????????????????????????????????????? | | ?????????????????????????????????????????????????? | | ??????????????????????????????????????? ????""?? | | ??????????????????????????????????????# #??? ?? | | ??????????????????????????????????????# #####+## | | ?????????????????????????????##?####?## | | ?????????????????????????????# # | | ?????????????????????????????# """"" # ** | | ?????????????????????????????# """"" # ** | | ?????????????????????????????# """"" + * | | ?????????????????????????????# # | | ?????????????????????????????# # | | ???????????????? ???????????# "T" # | | ????????????????? ?????????# """ # | | ??????????????????""""???????# [ = # | | ????????????????? """" u##########+#### | | ????????????????? """" u%@ /g = [ # | | ???????????????# !%##### ggg k # | | ???????????????# ??????# kk | | ???????????????# ##????????# """ """ # % | | ????????????????????????????# """ """ #####T###### | | ????????????????????????????# """ """ #???###????# | | ????????????????????????????# #??????????# | | ????????????????????????????# #??????????# | | ????????????????????????????#####+#####??????????# | | ????????????????????????????????# ???????????????# | | ????????????????????????????????# ????????#??????# | | ????????????????????????????????#????????????????# | | ??????????????????????????????????????????????#??? | | ?????????????????????????????????????????????????? | | ??????????????????????????????????????????????#??? | | ????????????????????????????????????????????????#? | | ?????????????????????????????????????????????????? | | ?????????????????????????????????????????????????? | | ?????????????????????????????????????????????????? | | ?????????????????????????????????????????????????? | | ?????????????????????????????????????????????????? | | ?????????????????????????????????????????????????# | | ?????????????????????????????????????????????????# | | ????????????????????????????????????????????#?#??# | | ?????????????????????????????????????????????????? | +----------------------------------------------------+ Best States ------------- Heat Dissipation 35 Energy Generation 10 Energy Capacity 250 Matter Stores 300 Matter Capacity 300 Sight Range 16 Terrain Scan Range 16 Terrain Scan Density 10 Evasion (%) 53 Recoil Reduction 2 Offensive Hacking 10 Item Schematics ----------------- None Robot Schematics ------------------ None Fabricated ------------ Nothing Repaired ---------- Nothing Studied --------- None Alien Tech Used ----------------- None Achievements -------------- None Challenges ------------ None Game ------ Seed MobileTargetingMembrane Manual? 0 Play Time 00:08:36 Cumulative 73.6 hours Start 2025.11.02 @ 12:54:12 End 2025.11.02 @ 13:00:31 Sessions 1 Manual Loads 0 Difficulty Rogue Special Mode None Game No. 92 Rogue 92 Adventurer 0 Explorer 0 Win Type - Total 0 Types 0/0/0/0/0/0/0/0/0/0 Lore% 17 Gallery% 39 Achievement% 22 Wizard Run 0 Options --------- Layout 0 ASCII 0 Keyboard 0 Movement Mouse Keybinds 0 Fullscreen 1 Font 24/Smallcaps Map View 76x50 Zoom Use 0% Tactical HUD 1 Map Filters NONE Filters NONE Steam 1 RUN: 72dd62b1-90b1-4850-bd94-42be4f57a20e